[Event "4NCL Div 1 2024-25"]
[Site "England"]
[Date "2025.04.05"]
[Round "7.31"]
[White "Mirzoeva, Elmira"]
[Black "O`Donnell, Conor"]
[Result "1/2-1/2"]
[Annotator "ChessBase"]
[ECO "D45"]
[WhiteElo "2258"]
[BlackElo "2293"]
[PlyCount "102"]
[EventDate "2024.11.23"]
[EventType "team-tourn"]
[EventCountry "ENG"]
[SourceTitle "playchess.com"]
[Source "ChessBase"]
[SourceQuality "1"]
[TimeControl "40/6000+30:3000+30"]

1. Nf3 {[%emt 0:10:03]} d5 {[%emt 0:12:20]} 2. e3 {[%emt 0:00:13]} Nf6 {[%emt 0:00:42]} 3. b3 {[%emt 0:00:49]} e6 {[%emt 0:03:35]} 4. Bb2 {[%emt 0:00:20]} Bd6 {[%emt 0:00:43]} 5. c4 {[%emt 0:01:00]} Nbd7 {[%emt 0:01:37]} 6. Be2 {[%emt 0:00:48]} O-O {[%emt 0:00:51]} 7. O-O {[%emt 0:00:58]} c6 {[%emt 0:05:17]} 8. d4 {[%emt 0:06:12]} b6 {[%emt 0:03:43]} 9. Nbd2 {[%emt 0:12:15]} Bb7 {[%emt 0:00:43]} 10. Qc2 {[%emt 0:05:57]} Qe7 {[%emt 0:01:25]} 11. e4 {[%emt 0:13:15]} Nxe4 {[%emt 0:02:01]} 12. Nxe4 {[%emt 0:00:14]} dxe4 {[%emt 0:00:14]} 13. Qxe4 {[%emt 0:00:09]} Nf6 {[%emt 0:01:34]} 14. Qh4 {[%emt 0:00:20]} c5 {[%emt 0:03:05]} 15. Bd3 {[%emt 0:06:22]} h6 {[%emt 0:06:36]} 16. Rfe1 {[%emt 0:04:22]} Bxf3 {[%emt 0:02:23]} 17. gxf3 {[%emt 0:00:25]} cxd4 {[%emt 0:04:35]} 18. Bxd4 {[%emt 0:00:45]} Bc5 {[%emt 0:07:48]} 19. Bb2 {[%emt 0:02:38]} Ba3 {[%emt 0:08:16]} 20. Be5 {[%emt 0:01:49]} Nd7 {[%emt 0:06:33]} 21. Qxe7 {[%emt 0:03:11]} Bxe7 {[%emt 0:00:04]} 22. Bg3 {[%emt 0:00:16]} Bb4 {[%emt 0:04:07]} 23. Red1 {[%emt 0:01:14]} f5 {[%emt 0:03:21]} 24. Be2 {[%emt 0:03:11]} Rf7 {[%emt 0:02:38]} 25. a3 {[%emt 0:10:58]} Bc3 {[%emt 0:07:53]} 26. Ra2 {[%emt 0:00:37]} Bf6 {[%emt 0:03:31]} 27. Rad2 {[%emt 0:10:29]} Nc5 {[%emt 0:00:38]} 28. b4 {[%emt 0:03:36]} Na4 {[%emt 0:00:32]} 29. Bd6 {[%emt 0:04:21]} Nc3 {[%emt 0:04:40]} 30. Re1 {[%emt 0:01:38]} Nxe2+ {[%emt 0:04:51]} 31. Rdxe2 {[%emt 0:00:30]} Rc8 {[%emt 0:00:47]} 32. c5 {[%emt 0:01:07]} bxc5 {[%emt 0:00:37]} 33. bxc5 {[%emt 0:02:03]} e5 {[%emt 0:03:55]} 34. Rb1 {[%emt 0:00:43]} Rc6 {[%emt 0:01:51]} 35. Reb2 {[%emt 0:01:43]} Kh7 {[%emt 0:01:49]} 36. Rb7 {[%emt 0:00:34]} Rxb7 {[%emt 0:00:37]} 37. Rxb7 {[%emt 0:00:01]} e4 {[%emt 0:02:04]} 38. fxe4 {[%emt 0:00:47]} fxe4 {[%emt 0:00:07]} 39. Rxa7 {[%emt 0:01:48]} Bd4 {[%emt 0:00:29]} 40. Ra5 {[%emt 0:00:34]} Kg6 {[%emt 0:00:56]} 41. a4 {[%emt 0:52:10]} Kf5 {[%emt 0:24:45]} 42. Rb5 {[%emt 0:00:00]} Ke6 {[%emt 0:00:47]} 43. Kf1 {[%emt 0:00:00]} Kd5 {[%emt 0:01:26]} 44. Ke2 {[%emt 0:00:00]} Ra6 {[%emt 0:03:43]} 45. a5 {[%emt 0:00:00]} Kc4 {[%emt 0:08:26]} 46. Rb1 {[%emt 0:00:00]} Kd5 {[%emt 0:03:32]} 47. Bc7 {[%emt 0:02:16]} Rf6 {[%emt 0:05:44]} 48. Bg3 {[%emt 0:00:21]} Bxc5 {[%emt 0:01:47]} 49. Rb7 {[%emt 0:00:49]} g5 {[%emt 0:02:01]} 50. Rd7+ {[%emt 0:00:34]} Kc6 {[%emt 0:01:56]} 51. Rd8 {[%emt 0:00:03]} Kb5 {[%emt 0:01:02]} 1/2-1/2

[Event "4NCL Div 1 2024-25"]
[Site "England"]
[Date "2025.04.05"]
[Round "7.32"]
[White "Liu, Tianyi (Jack)"]
[Black "Smith, Andrew Philip"]
[Result "1-0"]
[Annotator "NA"]
[ECO "C41"]
[WhiteElo "2120"]
[BlackElo "2108"]
[PlyCount "69"]
[EventDate "2024.11.23"]
[EventType "team-tourn"]
[EventCountry "ENG"]
[SourceTitle "playchess.com"]
[Source "ChessBase"]
[SourceQuality "1"]
[TimeControl "40/6000+30:3000+30"]

1. e4 {[%emt 0:10:02]} e5 {[%emt 0:38:30]} 2. Nf3 {[%emt 0:01:07]} d6 {[%emt 0:00:22]} 3. d4 {[%emt 0:00:07]} exd4 {[%emt 0:00:06]} 4. Nxd4 {[%emt 0:00:06]} Nf6 {[%emt 0:00:05]} 5. Nc3 {[%emt 0:00:05]} g6 {[%emt 0:00:06]} 6. Be3 {[%emt 0:00:19]} Bg7 {[%emt 0:00:07]} 7. Qd2 {[%emt 0:00:08]} O-O {[%emt 0:00:07]} 8. O-O-O {[%emt 0:00:13]} Re8 {[%emt 0:00:10]} 9. f3 {[%emt 0:02:18]} Nc6 {[%emt 0:00:27]} 10. g4 {[%emt 0:00:38]} Be6 {[%emt 0:04:53]} 11. Nxe6 {[%emt 0:18:28]} Rxe6 {[%emt 0:18:02]} 12. h4 {[%emt 0:03:50]} Ne5 {[%emt 0:03:54]} 13. Be2 {[%emt 0:00:30]} b5 {[%emt 0:04:42]} 14. Nxb5 {[%emt 0:14:08]} Rb8 {[%emt 0:15:54]} 15. Nd4 {[%emt 0:08:43]} Re8 {[%emt 0:00:31]} 16. c3 {[%emt 0:01:59]} c5 {[%emt 0:00:58]} 17. Nb3 {[%emt 0:08:12]} c4 {[%emt 0:01:50]} 18. Nd4 {[%emt 0:00:27]} Qa5 {[%emt 0:00:37]} 19. Kb1 {[%emt 0:01:39]} Rb6 {[%emt 0:01:09]} 20. Nc2 {[%emt 0:10:06]} Rb7 {[%emt 0:06:00]} 21. Nb4 {[%emt 0:04:49]} Reb8 {[%emt 0:01:27]} 22. Ka1 {[%emt 0:08:33]} Qa4 {[%emt 0:05:20]} 23. Qxd6 {[%emt 0:02:57]} a5 {[%emt 0:00:54]} 24. Qa6 {[%emt 0:01:24]} Rxb4 {[%emt 0:02:18]} 25. cxb4 {[%emt 0:00:36]} Qxb4 {[%emt 0:00:21]} 26. Bd4 {[%emt 0:00:37]} Nfd7 {[%emt 0:02:45]} 27. Bc3 {[%emt 0:02:46]} Qf8 {[%emt 0:01:41]} 28. Qd6 {[%emt 0:00:46]} Qc8 {[%emt 0:00:33]} 29. f4 {[%emt 0:02:01]} Nd3 {[%emt 0:00:29]} 30. Bxg7 {[%emt 0:00:20]} Kxg7 {[%emt 0:00:12]} 31. Bxd3 {[%emt 0:00:05]} cxd3 {[%emt 0:00:25]} 32. Qxd3 {[%emt 0:00:44]} Nc5 {[%emt 0:00:57]} 33. Qd4+ {[%emt 0:00:09]} Kg8 {[%emt 0:00:01]} 34. Rc1 {[%emt 0:01:18]} Rb5 {[%emt 0:00:08]} 35. h5 {[%emt 0:02:10]} 1-0

[Event "4NCL Div 1 2024-25"]
[Site "England"]
[Date "2025.04.05"]
[Round "7.33"]
[White "Ledger, Andrew J"]
[Black "Williams, Simon K"]
[Result "0-1"]
[Annotator "RC"]
[ECO "D45"]
[WhiteElo "2328"]
[BlackElo "2442"]
[PlyCount "56"]
[EventDate "2024.11.23"]
[EventType "team-tourn"]
[EventCountry "ENG"]
[SourceTitle "playchess.com"]
[Source "ChessBase"]
[SourceQuality "1"]
[TimeControl "40/6000+30:3000+30"]

1. c4 {[%emt 0:10:03]} e6 {[%emt 0:12:04]} 2. Nf3 {[%emt 0:00:47]} d5 {[%emt 0:00:31]} 3. d4 {[%emt 0:01:20]} Nf6 {[%emt 0:04:03]} 4. Nc3 {[%emt 0:00:35]} c6 {[%emt 0:00:46]} 5. e3 {[%emt 0:01:19]} Ne4 {[%emt 0:01:21]} 6. Nxe4 {[%emt 0:05:05]} dxe4 {[%emt 0:00:06]} 7. Nd2 {[%emt 0:00:08]} f5 {[%emt 0:00:14]} 8. Be2 {[%emt 0:05:00]} Nd7 {[%emt 0:20:23]} 9. O-O {[%emt 0:06:59]} Bd6 {[%emt 0:01:07]} 10. c5 {[%emt 0:09:55]} Bc7 {[%emt 0:00:30]} 11. b4 {[%emt 0:00:54]} O-O {[%emt 0:06:11]} 12. Bb2 {[%emt 0:05:15]} Nf6 {[%emt 0:07:33]} 13. g3 {[%emt 0:08:25]} Nd5 {[%emt 0:00:57]} 14. Qb3 {[%emt 0:02:44]} Qg5 {[%emt 0:12:51]} 15. f4 {[%emt 0:12:50]} exf3 {[%emt 0:00:17]} 16. Rxf3 {[%emt 0:04:17]} Bd7 {[%emt 0:02:26]} 17. Rd1 {[%emt 0:05:19]} Be8 {[%emt 0:10:16]} 18. Nf1 {[%emt 0:06:55]} Bh5 {[%emt 0:02:08]} 19. Rf2 {[%emt 0:00:06]} Bxe2 {[%emt 0:01:11]} 20. Rxe2 {[%emt 0:00:04]} f4 {[%emt 0:04:21]} 21. exf4 {[%emt 0:09:00]} Nxf4 {[%emt 0:00:12]} 22. Rc2 {[%emt 0:03:05]} Qg4 {[%emt 0:02:50]} 23. Re1 {[%emt 0:00:21]} Nh3+ {[%emt 0:00:32]} 24. Kg2 {[%emt 0:00:08]} Ng5 {[%emt 0:01:32]} 25. Kh1 {[%emt 0:04:12]} Rf3 {[%emt 0:01:27]} 26. Rc3 {[%emt 0:00:46]} Rxf1+ {[%emt 0:04:05]} 27. Rxf1 {[%emt 0:00:03]} Qe4+ {[%emt 0:00:05]} 28. Rff3 {[%emt 0:00:42]} Nxf3 {[%emt 0:00:40]} 0-1

[Event "4NCL Div 1 2024-25"]
[Site "England"]
[Date "2025.04.05"]
[Round "7.34"]
[White "Pert, Richard G"]
[Black "Gormally, Daniel W"]
[Result "1-0"]
[Annotator "RC"]
[ECO "D30"]
[WhiteElo "2399"]
[BlackElo "2424"]
[PlyCount "67"]
[EventDate "2024.11.23"]
[EventType "team-tourn"]
[EventCountry "ENG"]
[SourceTitle "playchess.com"]
[Source "ChessBase"]
[SourceQuality "1"]
[TimeControl "40/6000+30:3000+30"]

1. d4 {[%emt 0:10:18]} d5 {[%emt 0:10:15]} 2. Nf3 {[%emt 0:00:18]} c5 {[%emt 0:03:18]} 3. c4 {[%emt 0:04:21]} e6 {[%emt 0:04:41]} 4. e3 {[%emt 0:01:57]} Nf6 {[%emt 0:01:01]} 5. cxd5 {[%emt 0:00:26]} exd5 {[%emt 0:01:16]} 6. Bb5+ {[%emt 0:00:07]} Bd7 {[%emt 0:00:32]} 7. Bxd7+ {[%emt 0:00:20]} Nbxd7 {[%emt 0:00:42]} 8. dxc5 {[%emt 0:06:30]} Nxc5 {[%emt 0:04:58]} 9. O-O {[%emt 0:00:34]} Be7 {[%emt 0:00:49]} 10. Bd2 {[%emt 0:01:42]} O-O {[%emt 0:01:52]} 11. Bc3 {[%emt 0:00:50]} Nfe4 {[%emt 0:01:41]} 12. Bd4 {[%emt 0:02:52]} Ne6 {[%emt 0:00:47]} 13. Be5 {[%emt 0:09:14]} Bf6 {[%emt 0:02:21]} 14. Nbd2 {[%emt 0:02:21]} Nxd2 {[%emt 0:08:37]} 15. Qxd2 {[%emt 0:00:17]} Ng5 {[%emt 0:05:07]} 16. Nxg5 {[%emt 0:02:15]} Bxe5 {[%emt 0:00:07]} 17. Nf3 {[%emt 0:00:26]} Bf6 {[%emt 0:00:27]} 18. Rac1 {[%emt 0:09:30]} Qb6 {[%emt 0:01:05]} 19. b3 {[%emt 0:07:42]} Rad8 {[%emt 0:01:49]} 20. Rfd1 {[%emt 0:00:40]} Rfe8 {[%emt 0:00:58]} 21. h3 {[%emt 0:03:30]} g6 {[%emt 0:00:39]} 22. Qd3 {[%emt 0:07:03]} Re4 {[%emt 0:07:26]} 23. Qc2 {[%emt 0:06:33]} Re6 {[%emt 0:06:26]} 24. Qc7 {[%emt 0:04:14]} Rc6 {[%emt 0:02:26]} 25. Qf4 {[%emt 0:06:11]} Kg7 {[%emt 0:01:03]} 26. Nd4 {[%emt 0:02:42]} Rxc1 {[%emt 0:07:11]} 27. Rxc1 {[%emt 0:00:16]} Re8 {[%emt 0:02:42]} 28. Nf3 {[%emt 0:01:43]} Re4 {[%emt 0:03:34]} 29. Qc7 {[%emt 0:03:15]} Qe6 {[%emt 0:05:31]} 30. Rd1 {[%emt 0:05:05]} d4 {[%emt 0:01:28]} 31. exd4 {[%emt 0:02:08]} Re2 {[%emt 0:02:39]} 32. d5 {[%emt 0:00:48]} Qa6 {[%emt 0:00:25]} 33. a4 {[%emt 0:00:28]} Rb2 {[%emt 0:03:15]} 34. Ne5 {[%emt 0:01:15]} 1-0

[Event "4NCL Div 1 2024-25"]
[Site "England"]
[Date "2025.04.05"]
[Round "7.35"]
[White "Ansell, Simon T"]
[Black "Kirk, Ezra"]
[Result "0-1"]
[Annotator "RC"]
[ECO "C02"]
[WhiteElo "2323"]
[BlackElo "2386"]
[PlyCount "92"]
[EventDate "2024.11.23"]
[EventType "team-tourn"]
[EventCountry "ENG"]
[SourceTitle "playchess.com"]
[Source "ChessBase"]
[SourceQuality "1"]
[TimeControl "40/6000+30:3000+30"]

1. e4 {[%emt 0:10:13]} e6 {[%emt 0:10:04]} 2. d4 {[%emt 0:00:59]} d5 {[%emt 0:00:07]} 3. e5 {[%emt 0:00:55]} c5 {[%emt 0:00:08]} 4. c3 {[%emt 0:00:11]} Nc6 {[%emt 0:00:06]} 5. Nf3 {[%emt 0:00:39]} Bd7 {[%emt 0:00:15]} 6. Be2 {[%emt 0:01:32]} f6 {[%emt 0:00:14]} 7. O-O {[%emt 0:03:25]} fxe5 {[%emt 0:00:08]} 8. Nxe5 {[%emt 0:00:19]} Nxe5 {[%emt 0:00:07]} 9. dxe5 {[%emt 0:00:04]} Qc7 {[%emt 0:00:28]} 10. Bf4 {[%emt 0:07:36]} Ne7 {[%emt 0:02:11]} 11. Re1 {[%emt 0:11:43]} O-O-O {[%emt 0:04:52]} 12. a4 {[%emt 0:14:20]} Nf5 {[%emt 0:02:18]} 13. Na3 {[%emt 0:07:23]} c4 {[%emt 0:12:10]} 14. Bg4 {[%emt 0:17:58]} Nh6 {[%emt 0:05:02]} 15. Nb5 {[%emt 0:04:33]} Qb6 {[%emt 0:11:17]} 16. Be3 {[%emt 0:03:51]} Bc5 {[%emt 0:00:19]} 17. Bxc5 {[%emt 0:00:40]} Qxc5 {[%emt 0:00:08]} 18. Nd4 {[%emt 0:00:27]} Nxg4 {[%emt 0:12:56]} 19. Qxg4 {[%emt 0:00:10]} Qe7 {[%emt 0:00:22]} 20. b3 {[%emt 0:03:16]} cxb3 {[%emt 0:01:17]} 21. Reb1 {[%emt 0:00:37]} Kb8 {[%emt 0:01:44]} 22. Rxb3 {[%emt 0:01:56]} Rc8 {[%emt 0:00:51]} 23. a5 {[%emt 0:02:21]} Rc7 {[%emt 0:04:16]} 24. Qe2 {[%emt 0:00:34]} Ka8 {[%emt 0:04:34]} 25. Qe3 {[%emt 0:00:58]} Rhc8 {[%emt 0:02:14]} 26. f4 {[%emt 0:00:50]} g6 {[%emt 0:02:49]} 27. h3 {[%emt 0:00:46]} Rc4 {[%emt 0:05:08]} 28. Ne2 {[%emt 0:07:52]} Re4 {[%emt 0:09:01]} 29. Qd3 {[%emt 0:00:18]} Rc7 {[%emt 0:02:54]} 30. Kh2 {[%emt 0:00:59]} g5 {[%emt 0:03:01]} 31. a6 {[%emt 0:01:29]} b6 {[%emt 0:00:51]} 32. f5 {[%emt 0:00:59]} exf5 {[%emt 0:03:15]} 33. Qxd5+ {[%emt 0:00:18]} Kb8 {[%emt 0:02:44]} 34. Nd4 {[%emt 0:00:57]} Qxe5+ {[%emt 0:00:35]} 35. Qxe5 {[%emt 0:00:04]} Rxe5 {[%emt 0:00:05]} 36. Nf3 {[%emt 0:01:00]} Re2 {[%emt 0:02:23]} 37. Nd4 {[%emt 0:00:20]} Re3 {[%emt 0:01:22]} 38. Raa3 {[%emt 0:01:17]} f4 {[%emt 0:01:19]} 39. Ra5 {[%emt 0:01:04]} h6 {[%emt 0:03:49]} 40. Rd5 {[%emt 0:00:21]} Kc8 {[%emt 0:01:06]} 41. Rd6 {[%emt 0:54:40]} h5 {[%emt 0:26:26]} 42. Rg6 {[%emt 0:00:00]} g4 {[%emt 0:00:52]} 43. Rg8+ {[%emt 0:00:00]} Re8 {[%emt 0:00:31]} 44. Rxe8+ {[%emt 0:00:00]} Bxe8 {[%emt 0:00:04]} 45. hxg4 {[%emt 0:00:00]} hxg4 {[%emt 0:00:07]} 46. Ne6 {[%emt 0:00:00]} g3+ {[%emt 0:00:44]} 0-1

[Event "4NCL Div 1 2024-25"]
[Site "England"]
[Date "2025.04.05"]
[Round "7.37"]
[White "Webb, Laurence E"]
[Black "Pert, Nicholas"]
[Result "1-0"]
[Annotator "TA"]
[ECO "D14"]
[WhiteElo "2217"]
[BlackElo "2527"]
[PlyCount "81"]
[EventDate "2024.11.23"]
[EventType "team-tourn"]
[EventCountry "ENG"]
[SourceTitle "playchess.com"]
[Source "ChessBase"]
[SourceQuality "1"]
[TimeControl "40/6000+30:3000+30"]

{[%evp 22,81,20,22,38,18,19,30,33,12,6,0,5,0,0,0,0,0,20,19,16,-29,-35,-57,-38,-46,-13,-57,-13,-19,7,0,251,242,298,316,305,313,306,308,306,305,298,311,279,281,270,277,293,287,312,319,346,336,370,370,420,411,535,559,670,666]} 1. d4 {[%emt 0:10:09]} d5 {[%emt 0:10:22]} 2. c4 {[%emt 0:00:18]} c6 {[%emt 0:00:20]} 3. cxd5 {[%emt 0:00:18]} cxd5 {[%emt 0:00:03]} 4. Bf4 {[%emt 0:00:08]} Nc6 {[%emt 0:00:45]} 5. e3 {[%emt 0:00:33]} Nf6 {[%emt 0:00:29]} 6. Nc3 {[%emt 0:00:09]} Bg4 {[%emt 0:00:29]} 7. Qb3 {[%emt 0:00:36]} Na5 {[%emt 0:01:05]} 8. Qa4+ {[%emt 0:00:19]} Bd7 {[%emt 0:00:34]} 9. Qc2 {[%emt 0:00:15]} Rc8 {[%emt 0:01:50]} 10. Bd3 {[%emt 0:02:25]} b5 {[%emt 0:01:37]} 11. a3 {[%emt 0:01:21]} e6 {[%emt 0:01:01]} 12. Nf3 {[%emt 0:00:42]} Be7 {[%emt 0:01:08] D14: Slav Defence: Exchange variation with ...Bf5.} 13. O-O {[%emt 0:01:26]} O-O {[%emt 1:27:17]} 14. Ne5 {[%emt 0:01:27]} a6 {[%emt 0:06:53] White has an edge.} 15. Qe2 {[%emt 0:02:43]} Be8 {[%emt 0:01:18]} 16. h3 {[%emt 0:02:32] The position is symmetric and equal} Nd7 {[%emt 0:03:05]} 17. Nxd7 {[%emt 0:07:00]} Bxd7 {[%emt 0:04:06]} 18. Rac1 {[%emt 0:06:34]} Nc4 {[%emt 0:17:05]} 19. Rfd1 {[%emt 1:11:05]} Bc6 $146 {[%emt 0:07:04]} (19... Re8 20. Ra1 Qb6 21. Rdc1 Rc6 22. Nd1 Ra8 23. Rc2 Rac8 24. Rac1 g6 25. Bg3 h5 {1-0 Compagnie,L (2409)-Genchev,M (2261) W-Cup22 WS24 email 2017}) 20. Rc2 {[%emt 0:08:31]} a5 {[%emt 0:07:22]} 21. Bxc4 {[%emt 0:16:38]} bxc4 {[%emt 0:08:49]} 22. Be5 {[%emt 0:00:28]} f6 {[%emt 0:35:24]} 23. Bg3 {[%emt 0:00:54]} Be8 {[%emt 0:00:28]} 24. Rcd2 {[%emt 0:04:11]} Bg6 {[%emt 0:02:34]} 25. e4 {[%emt 0:00:38]} dxe4 {[%emt 0:05:09]} 26. d5 {[%emt 0:05:52]} exd5 {[%emt 0:00:48][%mdl 8192] Black is on the road to losing.} (26... Qd7 $11) 27. Nxd5 $18 {[%emt 0:02:54]} Qe8 {[%emt 0:11:51][%cal Oc4c3] [#]} 28. Nxe7+ $1 {[%emt 0:01:11]} Qxe7 {[%emt 0:00:01]} 29. Bd6 {[%emt 0:00:11]} Qe8 {[%emt 0:00:23][%cal Oe4e3]} 30. Bxf8 {[%emt 0:01:31]} Qxf8 {[%emt 0:02:38]} 31. Qe3 {[%emt 0:26:13]} h5 {[%emt 0:01:58]} 32. Qb6 {[%emt 0:05:15][%cal Od2d8] [#] And now Rd8! would win.} Kh7 {[%emt 0:00:15]} 33. Qxa5 {[%emt 0:02:43]} e3 {[%emt 0:01:42]} 34. fxe3 {[%emt 0:01:27][%cal Bf2e3,Be3e4,Be4e5][%mdl 32]} Qe7 {[%emt 0:00:04]} 35. Qc3 {[%emt 0:02:16]} Rc7 {[%emt 0:02:25][%cal Bc8c7,Bc7b7,Bb7b3,Bb3g3][%mdl 32]} 36. Rd5 {[%emt 0:01:53]} Rb7 {[%emt 0:00:56]} 37. Qd4 {[%emt 0:01:53]} (37. Qxc4 Qxe3+ 38. Kh2 Rxb2 $14) 37... Rb3 {[%emt 0:00:06]} 38. e4 {[%emt 0:06:35]} (38. Qxc4 Qxe3+ 39. Kh2 Rxb2 $14) 38... Rg3 {[%emt 0:01:16]} 39. Kh2 {[%emt 0:00:55]} (39. Qxc4 Bxe4 40. Rxh5+ Kg6 $14) 39... h4 {[%emt 0:00:19]} 40. e5 {[%emt 0:02:21]} ({Less strong is} 40. Qxc4 Bxe4 41. R1d2 (41. Rh5+ $2 Kg6 $19) 41... f5 $16) 40... f5 {[%emt 0:00:44]} 41. Qf4 {[%emt 0:51:39] Weighted Error Value: White=0.05 (flawless) /Black=0.39  Loses game:     	---       	Black=1      Inaccurate:     	White=2     	Black=4      OK:         	White=13    	Black=7      Best:        	White=2     	---        Strong:       	White=1     	---} 1-0

[Event "4NCL Div 1 2024-25"]
[Site "England"]
[Date "2025.04.05"]
[Round "7.38"]
[White "Eggleston, David J"]
[Black "Ledger, Dave J"]
[Result "1-0"]
[Annotator "ChessBase"]
[ECO "C79"]
[WhiteElo "2339"]
[BlackElo "2191"]
[PlyCount "69"]
[EventDate "2024.11.23"]
[EventType "team-tourn"]
[EventCountry "ENG"]
[SourceTitle "playchess.com"]
[Source "ChessBase"]
[SourceQuality "1"]
[TimeControl "40/6000+30:3000+30"]

1. e4 {[%emt 0:10:02]} e5 {[%emt 0:10:07]} 2. Nf3 {[%emt 0:00:12]} Nc6 {[%emt 0:00:24]} 3. Bb5 {[%emt 0:00:08]} a6 {[%emt 0:00:28]} 4. Ba4 {[%emt 0:00:06]} d6 {[%emt 0:00:43]} 5. c3 {[%emt 0:00:25]} Bd7 {[%emt 0:01:06]} 6. d4 {[%emt 0:00:35]} g6 {[%emt 0:00:53]} 7. O-O {[%emt 0:01:18]} Bg7 {[%emt 0:00:36]} 8. Re1 {[%emt 0:00:38]} Nf6 {[%emt 0:02:25]} 9. Bxc6 {[%emt 0:10:01]} Bxc6 {[%emt 0:01:15]} 10. dxe5 {[%emt 0:00:14]} dxe5 {[%emt 0:01:01]} 11. Qxd8+ {[%emt 0:00:28]} Rxd8 {[%emt 0:01:08]} 12. Nxe5 {[%emt 0:00:09]} Ba4 {[%emt 0:16:44]} 13. Nd2 {[%emt 0:27:41]} O-O {[%emt 0:02:47]} 14. Nec4 {[%emt 0:06:27]} Rfe8 {[%emt 0:06:01]} 15. f3 {[%emt 0:00:32]} Nh5 {[%emt 0:00:47]} 16. Nb3 {[%emt 0:01:46]} b6 {[%emt 0:09:47]} 17. Bg5 {[%emt 0:00:40]} Rd7 {[%emt 0:03:18]} 18. Rad1 {[%emt 0:01:12]} h6 {[%emt 0:01:28]} 19. Rxd7 {[%emt 0:01:16]} Bxd7 {[%emt 0:00:07]} 20. Be3 {[%emt 0:02:19]} a5 {[%emt 0:06:22]} 21. Nd4 {[%emt 0:04:25]} Bf8 {[%emt 0:03:48]} 22. a3 {[%emt 0:01:10]} Kh7 {[%emt 0:00:42]} 23. Kf2 {[%emt 0:01:57]} Ng7 {[%emt 0:00:49]} 24. Rd1 {[%emt 0:01:32]} Ne6 {[%emt 0:02:38]} 25. Ne5 {[%emt 0:03:54]} Ba4 {[%emt 0:01:28]} 26. Rd2 {[%emt 0:03:24]} Kg7 {[%emt 0:05:18]} 27. b3 {[%emt 0:10:58]} Nxd4 {[%emt 0:01:44]} 28. Bxd4 {[%emt 0:00:11]} c5 {[%emt 0:02:49]} 29. bxa4 {[%emt 0:00:14]} cxd4 {[%emt 0:00:02]} 30. cxd4 {[%emt 0:00:08]} Bxa3 {[%emt 0:03:18]} 31. Nc6 {[%emt 0:01:00]} f5 {[%emt 0:01:28]} 32. e5 {[%emt 0:01:16]} f4 {[%emt 0:00:07]} 33. Ke2 {[%emt 0:01:35]} Rc8 {[%emt 0:00:55]} 34. d5 {[%emt 0:00:14]} Bc1 {[%emt 0:00:28]} 35. Rc2 {[%emt 0:01:26]} 1-0

[Event "4NCL Div 1 2024-25"]
[Site "England"]
[Date "2025.04.05"]
[Round "7.39"]
[White "Varney, Zoe"]
[Black "Pert, Max"]
[Result "1-0"]
[Annotator "NA"]
[ECO "B12"]
[WhiteElo "1996"]
[BlackElo "2076"]
[PlyCount "45"]
[EventDate "2024.11.23"]
[EventType "team-tourn"]
[EventCountry "ENG"]
[SourceTitle "playchess.com"]
[Source "ChessBase"]
[SourceQuality "1"]
[TimeControl "40/6000+30:3000+30"]

1. e4 {[%emt 0:10:03]} c6 {[%emt 0:10:35]} 2. d4 {[%emt 0:00:06]} d5 {[%emt 0:00:35]} 3. e5 {[%emt 0:00:32]} c5 {[%emt 0:01:03]} 4. Nf3 {[%emt 0:01:08]} Nc6 {[%emt 0:01:21]} 5. dxc5 {[%emt 0:01:51]} Bg4 {[%emt 0:03:20]} 6. c3 {[%emt 0:03:37]} e6 {[%emt 0:03:10]} 7. Be3 {[%emt 0:01:29]} Nge7 {[%emt 0:02:16]} 8. Nbd2 {[%emt 0:03:10]} Nf5 {[%emt 0:06:32]} 9. Bd4 {[%emt 0:02:37]} Be7 {[%emt 0:14:49]} 10. h3 {[%emt 0:03:51]} Bxf3 {[%emt 0:03:48]} 11. Nxf3 {[%emt 0:01:34]} O-O {[%emt 0:01:37]} 12. Qa4 {[%emt 0:04:23]} Qc7 {[%emt 0:03:31]} 13. Bb5 {[%emt 0:07:34]} a5 {[%emt 0:09:51]} 14. Bxc6 {[%emt 0:13:18]} bxc6 {[%emt 0:00:52]} 15. O-O {[%emt 0:08:44]} Rfb8 {[%emt 0:01:00]} 16. Rab1 {[%emt 0:14:15]} Rb5 {[%emt 0:03:00]} 17. b4 {[%emt 0:02:02]} Qb7 {[%emt 0:09:53]} 18. Qb3 {[%emt 0:03:52]} axb4 {[%emt 0:04:59]} 19. cxb4 {[%emt 0:04:21]} Qa6 {[%emt 0:08:14]} 20. g4 {[%emt 0:05:04]} Nh6 {[%emt 0:02:21]} 21. Qd3 {[%emt 0:07:03]} Qxa2 {[%emt 0:12:02]} 22. Ra1 {[%emt 0:03:05]} Ra3 {[%emt 0:00:17]} 23. Qxa3 {[%emt 0:00:24]} 1-0